[Event "*** Titled Tuesday Blitz"]
[Site "Chess.com"]
[Date "2020.05.26"]
[Round "4"]
[White "Kirill_Klukin"]
[Black "JoySpaceman"]
[Result "1-0"]
[WhiteElo "2702"]
[BlackElo "2501"]
[TimeControl "180+1"]
[EndTime "10:39:29 PDT"]
[Termination "Kirill_Klukin won by resignation"]

1. d4 {[%clk 0:03:00.9]} 1... Nf6 {[%clk 0:03:00.2]} 2. Nf3 {[%clk 0:02:59.9]}
2... e6 {[%clk 0:03:00.4]} 3. e3 {[%clk 0:02:57]} 3... c5 {[%clk 0:02:58.9]} 4.
Bd3 {[%clk 0:02:57.9]} 4... Be7 {[%clk 0:02:55.2]} 5. O-O {[%clk 0:02:57.4]}
5... O-O {[%clk 0:02:54.8]} 6. c4 {[%clk 0:02:57.3]} 6... cxd4 {[%clk
0:02:53.2]} 7. exd4 {[%clk 0:02:58.2]} 7... d5 {[%clk 0:02:53.5]} 8. Nc3 {[%clk
0:02:56.8]} 8... dxc4 {[%clk 0:02:52]} 9. Bxc4 {[%clk 0:02:56.8]} 9... Nbd7
{[%clk 0:02:52.4]} 10. Bg5 {[%clk 0:02:54.4]} 10... Nb6 {[%clk 0:02:51.4]} 11.
Bb3 {[%clk 0:02:53.8]} 11... h6 {[%clk 0:02:51.3]} 12. Bh4 {[%clk 0:02:53.5]}
12... a5 {[%clk 0:02:29.3]} 13. Rc1 {[%clk 0:02:44.5]} 13... Bd7 {[%clk
0:02:27.1]} 14. Ne5 {[%clk 0:02:37.1]} 14... a4 {[%clk 0:02:20.5]} 15. Bc2
{[%clk 0:02:36.6]} 15... Nbd5 {[%clk 0:01:57.8]} 16. Nxd5 {[%clk 0:02:25]} 16...
Nxd5 {[%clk 0:01:57.5]} 17. Qd3 {[%clk 0:02:24.6]} 17... f5 {[%clk 0:01:48]} 18.
Bxe7 {[%clk 0:02:15.7]} 18... Nxe7 {[%clk 0:01:46]} 19. Rfe1 {[%clk 0:02:15.3]}
19... Ra5 {[%clk 0:01:40.8]} 20. Bd1 {[%clk 0:02:09.9]} 20... Rd5 {[%clk
0:01:34]} 21. Bf3 {[%clk 0:02:07.2]} 21... Bb5 {[%clk 0:01:31.8]} 22. Qe3 {[%clk
0:01:29.2]} 22... Rxd4 {[%clk 0:01:28.7]} 23. Bxb7 {[%clk 0:01:25.9]} 23... f4
{[%clk 0:01:13.4]} 24. Qa3 {[%clk 0:01:19.1]} 24... Nf5 {[%clk 0:00:52.3]} 25.
Qc5 {[%clk 0:01:00.5]} 25... Be8 {[%clk 0:00:41.6]} 26. Bc8 {[%clk 0:00:42.9]}
26... Rd6 {[%clk 0:00:22.9]} 27. Nc4 {[%clk 0:00:31.5]} 27... Rc6 {[%clk
0:00:23.3]} 28. Bxe6+ {[%clk 0:00:29.7]} 28... Rxe6 {[%clk 0:00:18.4]} 29. Rxe6
{[%clk 0:00:29]} 29... Qg5 {[%clk 0:00:13.6]} 30. Nd6 {[%clk 0:00:16.8]} 30...
f3 {[%clk 0:00:09.6]} 31. g3 {[%clk 0:00:15.8]} 31... Bg6 {[%clk 0:00:07.2]} 32.
h4 {[%clk 0:00:09.8]} 32... Qg4 {[%clk 0:00:07]} 33. Qc4 {[%clk 0:00:09.1]}
33... Qh3 {[%clk 0:00:05.3]} 34. Qf1 {[%clk 0:00:03.6]} 34... Qg4 {[%clk
0:00:05.2]} 35. Nxf5 {[%clk 0:00:02.2]} 35... Bxf5 {[%clk 0:00:05.3]} 36. Re3
{[%clk 0:00:03.1]} 36... Kh8 {[%clk 0:00:04.2]} 37. Rce1 {[%clk 0:00:04]} 37...
Bg6 {[%clk 0:00:04.2]} 38. Re5 {[%clk 0:00:04.4]} 38... Bf5 {[%clk 0:00:04.5]}
39. R5e3 {[%clk 0:00:04.7]} 39... Bg6 {[%clk 0:00:05]} 40. b3 {[%clk 0:00:05.2]}
40... Kh7 {[%clk 0:00:05.3]} 41. Re7 {[%clk 0:00:04.8]} 41... axb3 {[%clk
0:00:05.1]} 42. axb3 {[%clk 0:00:04.6]} 42... Bc2 {[%clk 0:00:04.7]} 43. Rc7
{[%clk 0:00:03.9]} 43... Bxb3 {[%clk 0:00:05]} 44. Ree7 {[%clk 0:00:03.9]} 44...
Rg8 {[%clk 0:00:05.5]} 45. Qd3+ {[%clk 0:00:03.7]} 45... Kh8 {[%clk 0:00:04.7]}
46. Qxb3 {[%clk 0:00:03.6]} 46... Qd4 {[%clk 0:00:04.2]} 47. Qxf3 {[%clk
0:00:03.2]} 47... Qa1+ {[%clk 0:00:05.1]} 48. Kg2 {[%clk 0:00:03.5]} 48... Qd4
{[%clk 0:00:06]} 49. Rf7 {[%clk 0:00:03.7]} 49... Qe5 {[%clk 0:00:06.2]} 50.
Rce7 {[%clk 0:00:03.4]} 50... Qd4 {[%clk 0:00:06.4]} 51. Qe4 {[%clk 0:00:03.9]}
1-0

[Event "*** Titled Tuesday Blitz"]
[Site "Chess.com"]
[Date "2020.05.26"]
[Round "4"]
[White "angryhorse9"]
[Black "VishnuPrasanna"]
[Result "0-1"]
[WhiteElo "2469"]
[BlackElo "2642"]
[TimeControl "180+1"]
[EndTime "10:39:32 PDT"]
[Termination "VishnuPrasanna won by resignation"]

1. e4 {[%clk 0:02:58.3]} 1... c5 {[%clk 0:02:59.8]} 2. Nc3 {[%clk 0:02:57.3]}
2... d6 {[%clk 0:03:00]} 3. f4 {[%clk 0:02:56.9]} 3... Nc6 {[%clk 0:02:59]} 4.
Nf3 {[%clk 0:02:56.6]} 4... e6 {[%clk 0:02:59.6]} 5. d4 {[%clk 0:02:56]} 5...
cxd4 {[%clk 0:02:59.4]} 6. Nxd4 {[%clk 0:02:56.3]} 6... Nf6 {[%clk 0:02:59.7]}
7. Be3 {[%clk 0:02:56.6]} 7... Be7 {[%clk 0:02:58.7]} 8. Qf3 {[%clk 0:02:53.9]}
8... a6 {[%clk 0:02:58]} 9. O-O-O {[%clk 0:02:38.4]} 9... Qc7 {[%clk 0:02:57.9]}
10. Be2 {[%clk 0:02:23.8]} 10... h5 {[%clk 0:02:56.8]} 11. h3 {[%clk 0:02:22]}
11... h4 {[%clk 0:02:55.2]} 12. g4 {[%clk 0:02:16.9]} 12... hxg3 {[%clk
0:02:53.8]} 13. Qxg3 {[%clk 0:02:17.2]} 13... g6 {[%clk 0:02:45.7]} 14. f5
{[%clk 0:02:08.4]} 14... gxf5 {[%clk 0:02:44.4]} 15. Nxc6 {[%clk 0:02:00.5]}
15... bxc6 {[%clk 0:02:43.8]} 16. exf5 {[%clk 0:02:00.7]} 16... e5 {[%clk
0:02:42.6]} 17. Bc4 {[%clk 0:01:34.6]} 17... Rb8 {[%clk 0:02:39.5]} 18. Qg7
{[%clk 0:01:29.1]} 18... Rf8 {[%clk 0:02:38.8]} 19. Bg5 {[%clk 0:01:20.6]} 19...
Nh5 {[%clk 0:02:28.8]} 20. Bxf7+ {[%clk 0:01:19.5]} 20... Rxf7 {[%clk
0:02:13.1]} 21. Qh8+ {[%clk 0:01:19.4]} 21... Bf8 {[%clk 0:01:42.9]} 22. Qxh5
{[%clk 0:01:18.9]} 22... Bxf5 {[%clk 0:01:43.2]} 23. Rhf1 {[%clk 0:01:16.3]}
23... Qd7 {[%clk 0:01:43.4]} 24. Rd2 {[%clk 0:01:06.1]} 24... Qe6 {[%clk
0:01:03.7]} 25. Rdf2 {[%clk 0:00:47.7]} 25... Qg6 {[%clk 0:01:03.9]} 26. Qh4
{[%clk 0:00:37]} 26... d5 {[%clk 0:00:59.5]} 27. Bd2 {[%clk 0:00:22.2]} 27...
Rb4 {[%clk 0:00:55.3]} 28. Qh8 {[%clk 0:00:15.2]} 28... Qe6 {[%clk 0:00:54.6]}
29. a3 {[%clk 0:00:09.4]} 29... Rc4 {[%clk 0:00:52.9]} 30. Bh6 {[%clk
0:00:09.1]} 30... d4 {[%clk 0:00:47.5]} 31. Bxf8 {[%clk 0:00:07.6]} 31... Rxf8
{[%clk 0:00:47.2]} 32. Qh5+ {[%clk 0:00:08.1]} 32... Kd7 {[%clk 0:00:43.4]} 33.
Ne4 {[%clk 0:00:06.9]} 33... Bxe4 {[%clk 0:00:37.6]} 34. Rxf8 {[%clk 0:00:06.8]}
34... Rxc2+ {[%clk 0:00:37.5]} 35. Kd1 {[%clk 0:00:07.3]} 35... Kc7 {[%clk
0:00:23.5]} 36. Qf7+ {[%clk 0:00:05.9]} 36... Qxf7 {[%clk 0:00:22.8]} 37. R8xf7+
{[%clk 0:00:06.8]} 37... Kb6 {[%clk 0:00:21.9]} 38. R7f2 {[%clk 0:00:07.7]}
38... Rc5 {[%clk 0:00:20.6]} 39. h4 {[%clk 0:00:07.8]} 39... Bd5 {[%clk
0:00:20.5]} 40. h5 {[%clk 0:00:07.9]} 40... e4 {[%clk 0:00:21]} 41. h6 {[%clk
0:00:06.3]} 41... e3 {[%clk 0:00:21.1]} 42. h7 {[%clk 0:00:06.5]} 42... Bb3+
{[%clk 0:00:21]} 43. Ke2 {[%clk 0:00:06.1]} 43... Bc4+ {[%clk 0:00:21.2]} 44.
Kf3 {[%clk 0:00:06.1]} 44... Rh5 {[%clk 0:00:21.7]} 45. Kg4 {[%clk 0:00:04.9]}
45... Rxh7 {[%clk 0:00:21.9]} 46. Rf4 {[%clk 0:00:05.3]} 46... Bxf1 {[%clk
0:00:21.4]} 0-1

[Event "*** Titled Tuesday Blitz"]
[Site "Chess.com"]
[Date "2020.05.26"]
[Round "4"]
[White "KNVB"]
[Black "Ranindu2003"]
[Result "1-0"]
[WhiteElo "2780"]
[BlackElo "2523"]
[TimeControl "180+1"]
[EndTime "10:39:34 PDT"]
[Termination "KNVB won on time"]

1. b3 {[%clk 0:03:00.9]} 1... Nf6 {[%clk 0:02:58.5]} 2. Bb2 {[%clk 0:02:58.9]}
2... e6 {[%clk 0:02:58.2]} 3. Nf3 {[%clk 0:02:58.7]} 3... b6 {[%clk 0:02:54.7]}
4. g3 {[%clk 0:02:51.7]} 4... Bb7 {[%clk 0:02:53.9]} 5. Bg2 {[%clk 0:02:52.2]}
5... Be7 {[%clk 0:02:49.8]} 6. O-O {[%clk 0:02:52.2]} 6... O-O {[%clk
0:02:49.4]} 7. c4 {[%clk 0:02:52.2]} 7... c5 {[%clk 0:02:46.1]} 8. d4 {[%clk
0:02:48.2]} 8... cxd4 {[%clk 0:02:41.8]} 9. Qxd4 {[%clk 0:02:49.1]} 9... Nc6
{[%clk 0:02:37.3]} 10. Qd2 {[%clk 0:02:48.2]} 10... d5 {[%clk 0:02:31.5]} 11.
cxd5 {[%clk 0:02:45.4]} 11... Qxd5 {[%clk 0:02:14]} 12. Nc3 {[%clk 0:02:36.6]}
12... Qxd2 {[%clk 0:02:05.9]} 13. Nxd2 {[%clk 0:02:37.5]} 13... Rfd8 {[%clk
0:02:05.9]} 14. Nc4 {[%clk 0:02:37.8]} 14... Rac8 {[%clk 0:01:38]} 15. Rfd1
{[%clk 0:02:34.9]} 15... Ba8 {[%clk 0:01:36.6]} 16. Nb5 {[%clk 0:02:32.3]} 16...
Nd5 {[%clk 0:01:22.2]} 17. e4 {[%clk 0:02:23.6]} 17... Nc7 {[%clk 0:01:11]} 18.
Nbd6 {[%clk 0:01:15.2]} 18... Rb8 {[%clk 0:01:06.2]} 19. e5 {[%clk 0:01:15.6]}
19... b5 {[%clk 0:00:35.6]} 20. Ne3 {[%clk 0:01:15.7]} 20... Nb4 {[%clk
0:00:24.2]} 21. Rac1 {[%clk 0:00:55]} 21... Nbd5 {[%clk 0:00:18.6]} 22. Nxd5
{[%clk 0:00:53.4]} 22... Nxd5 {[%clk 0:00:17.2]} 23. Bd4 {[%clk 0:00:41.5]}
23... a6 {[%clk 0:00:09]} 24. Bc5 {[%clk 0:00:39.5]} 24... Bxd6 {[%clk
0:00:07.1]} 25. Bxd6 {[%clk 0:00:38.4]} 25... Rbc8 {[%clk 0:00:07.1]} 26. Bf1
{[%clk 0:00:19.1]} 26... f6 {[%clk 0:00:05.4]} 27. Bd3 {[%clk 0:00:06.6]} 27...
fxe5 {[%clk 0:00:03.8]} 28. Bxe5 {[%clk 0:00:07.5]} 28... g6 {[%clk 0:00:03.3]}
29. f4 {[%clk 0:00:05.2]} 29... b4 {[%clk 0:00:03.4]} 30. Rxc8 {[%clk
0:00:03.5]} 30... Rxc8 {[%clk 0:00:03.5]} 31. Bc4 {[%clk 0:00:04.4]} 31... Kf7
{[%clk 0:00:03.8]} 32. Rd2 {[%clk 0:00:03.2]} 32... a5 {[%clk 0:00:03.8]} 33.
Kf2 {[%clk 0:00:03.5]} 33... Nb6 {[%clk 0:00:03.7]} 34. Be2 {[%clk 0:00:02.5]}
34... Bd5 {[%clk 0:00:03.5]} 35. Bd3 {[%clk 0:00:02.1]} 35... Nd7 {[%clk
0:00:03.8]} 36. Bd4 {[%clk 0:00:02.1]} 36... Nf6 {[%clk 0:00:04.4]} 37. Rc2
{[%clk 0:00:02.6]} 37... Rxc2+ {[%clk 0:00:04.1]} 38. Bxc2 {[%clk 0:00:03.5]}
38... Ne4+ {[%clk 0:00:03]} 39. Ke3 {[%clk 0:00:03]} 39... Nc3 {[%clk
0:00:02.7]} 40. Bxc3 {[%clk 0:00:03.1]} 40... bxc3 {[%clk 0:00:03.6]} 41. Kd4
{[%clk 0:00:03.8]} 41... Bg2 {[%clk 0:00:03]} 42. Kxc3 {[%clk 0:00:04.1]} 42...
e5 {[%clk 0:00:03.5]} 43. fxe5 {[%clk 0:00:04.2]} 43... Ke6 {[%clk 0:00:04.4]}
44. Kd4 {[%clk 0:00:04.9]} 44... Bb7 {[%clk 0:00:05.1]} 45. Bd3 {[%clk 0:00:05]}
45... Bc6 {[%clk 0:00:04.3]} 46. h4 {[%clk 0:00:05.2]} 46... Be8 {[%clk
0:00:01.6]} 47. a3 {[%clk 0:00:05.5]} 1-0

[Event "*** Titled Tuesday Blitz"]
[Site "Chess.com"]
[Date "2020.05.26"]
[Round "4"]
[White "almaguerjm"]
[Black "iLuusions"]
[Result "1-0"]
[WhiteElo "2354"]
[BlackElo "2576"]
[TimeControl "180+1"]
[EndTime "10:39:35 PDT"]
[Termination "almaguerjm won by resignation"]

1. d4 {[%clk 0:03:00.9]} 1... Nf6 {[%clk 0:02:59.9]} 2. Nc3 {[%clk 0:02:59.9]}
2... d5 {[%clk 0:02:57]} 3. Bf4 {[%clk 0:02:59.5]} 3... e6 {[%clk 0:02:57.2]} 4.
e3 {[%clk 0:02:59.1]} 4... a6 {[%clk 0:02:56.5]} 5. Bd3 {[%clk 0:02:57.7]} 5...
Bd6 {[%clk 0:02:55.6]} 6. Qf3 {[%clk 0:02:56.6]} 6... c5 {[%clk 0:02:50.9]} 7.
dxc5 {[%clk 0:02:55.5]} 7... Bxc5 {[%clk 0:02:50.2]} 8. O-O-O {[%clk 0:02:55.7]}
8... Nc6 {[%clk 0:02:44]} 9. Bg5 {[%clk 0:02:34.8]} 9... h6 {[%clk 0:02:07]} 10.
Bxf6 {[%clk 0:02:31.6]} 10... Qxf6 {[%clk 0:02:07.9]} 11. Qxf6 {[%clk
0:02:29.1]} 11... gxf6 {[%clk 0:02:08.8]} 12. g3 {[%clk 0:02:25.2]} 12... Ke7
{[%clk 0:02:04.2]} 13. Nf3 {[%clk 0:02:23.1]} 13... f5 {[%clk 0:02:01.2]} 14.
Be2 {[%clk 0:02:08.8]} 14... b5 {[%clk 0:01:58.9]} 15. Nd4 {[%clk 0:01:57.1]}
15... Bd7 {[%clk 0:01:53.9]} 16. Bf3 {[%clk 0:01:54.4]} 16... Rac8 {[%clk
0:01:49.8]} 17. Nxc6+ {[%clk 0:01:43.2]} 17... Bxc6 {[%clk 0:01:48.8]} 18. Ne2
{[%clk 0:01:41.8]} 18... b4 {[%clk 0:01:44.7]} 19. Nd4 {[%clk 0:01:39]} 19...
Bb7 {[%clk 0:01:42.2]} 20. h3 {[%clk 0:01:36.7]} 20... h5 {[%clk 0:01:37.1]} 21.
Kb1 {[%clk 0:01:24.3]} 21... a5 {[%clk 0:01:30.2]} 22. Rd2 {[%clk 0:01:19.7]}
22... a4 {[%clk 0:01:11.8]} 23. h4 {[%clk 0:01:19.6]} 23... Bb6 {[%clk 0:01:09]}
24. Ne2 {[%clk 0:01:13.3]} 24... Bc7 {[%clk 0:01:01.9]} 25. Rd4 {[%clk
0:01:09.6]} 25... Bd6 {[%clk 0:00:39.2]} 26. Nf4 {[%clk 0:01:06.8]} 26... Ba6
{[%clk 0:00:26.9]} 27. Nxh5 {[%clk 0:00:59.5]} 27... Bc4 {[%clk 0:00:18.7]} 28.
b3 {[%clk 0:00:54.5]} 28... axb3 {[%clk 0:00:17.6]} 29. cxb3 {[%clk 0:00:54.3]}
29... Bb5 {[%clk 0:00:17.7]} 30. Nf4 {[%clk 0:00:50]} 30... Be5 {[%clk
0:00:18.1]} 31. Rd2 {[%clk 0:00:48.2]} 31... Rc3 {[%clk 0:00:16.3]} 32. Rc1
{[%clk 0:00:44.5]} 32... Rhc8 {[%clk 0:00:14.1]} 33. Rxc3 {[%clk 0:00:44.6]}
33... Bxc3 {[%clk 0:00:12.8]} 34. Rc2 {[%clk 0:00:44.3]} 34... Kd6 {[%clk
0:00:13.2]} 35. Be2 {[%clk 0:00:44.4]} 35... Bc6 {[%clk 0:00:12.7]} 36. Nd3
{[%clk 0:00:41.5]} 36... e5 {[%clk 0:00:11.8]} 37. Nc1 {[%clk 0:00:37.3]} 37...
d4 {[%clk 0:00:11.1]} 38. exd4 {[%clk 0:00:36.7]} 38... exd4 {[%clk 0:00:12]}
39. Bd3 {[%clk 0:00:37.1]} 39... Be4 {[%clk 0:00:12.4]} 40. g4 {[%clk
0:00:33.6]} 40... Ke5 {[%clk 0:00:11.5]} 41. gxf5 {[%clk 0:00:33.4]} 41... Bxf5
{[%clk 0:00:11.8]} 42. Re2+ {[%clk 0:00:32.5]} 42... Kf4 {[%clk 0:00:11.7]} 43.
Bxf5 {[%clk 0:00:32.1]} 43... Kxf5 {[%clk 0:00:12.3]} 44. Nd3 {[%clk 0:00:32.6]}
44... f6 {[%clk 0:00:12.8]} 45. Rc2 {[%clk 0:00:29.7]} 45... Rh8 {[%clk
0:00:12.7]} 46. a3 {[%clk 0:00:27.7]} 46... bxa3 {[%clk 0:00:12.4]} 47. Ka2
{[%clk 0:00:26.5]} 47... Rxh4 {[%clk 0:00:12.6]} 48. Kxa3 {[%clk 0:00:26.5]}
48... Rh3 {[%clk 0:00:12.7]} 49. Nc5 {[%clk 0:00:26.2]} 49... Rh1 {[%clk
0:00:12.5]} 50. Ka4 {[%clk 0:00:25.7]} 50... Ra1+ {[%clk 0:00:12.4]} 51. Kb5
{[%clk 0:00:26.3]} 51... Rb1 {[%clk 0:00:09.9]} 52. Kc4 {[%clk 0:00:26.1]} 52...
Kf4 {[%clk 0:00:09.7]} 53. Re2 {[%clk 0:00:20.3]} 53... Kf3 {[%clk 0:00:05.8]}
54. Re6 {[%clk 0:00:20.3]} 54... f5 {[%clk 0:00:06.3]} 55. Rf6 {[%clk
0:00:18.9]} 55... f4 {[%clk 0:00:06.7]} 56. Nd3 {[%clk 0:00:18.4]} 56... Ke2
{[%clk 0:00:03.4]} 57. Nxf4+ {[%clk 0:00:18.2]} 57... Kd2 {[%clk 0:00:02.9]} 58.
Nd5 {[%clk 0:00:17.6]} 58... Rc1 {[%clk 0:00:02]} 59. Kb5 {[%clk 0:00:17.5]}
59... Bb2 {[%clk 0:00:02]} 60. b4 {[%clk 0:00:17.7]} 60... d3 {[%clk 0:00:02.7]}
61. Re6 {[%clk 0:00:16.6]} 61... Kd1 {[%clk 0:00:02.8]} 62. Ne3+ {[%clk
0:00:16.3]} 62... Ke2 {[%clk 0:00:02.9]} 63. Nc4+ {[%clk 0:00:16.9]} 63... Kxf2
{[%clk 0:00:03.3]} 64. Nxb2 {[%clk 0:00:17.3]} 64... d2 {[%clk 0:00:03.7]} 65.
Rd6 {[%clk 0:00:16]} 65... Ke2 {[%clk 0:00:04]} 66. Nc4 {[%clk 0:00:15.6]} 1-0

[Event "*** Titled Tuesday Blitz"]
[Site "Chess.com"]
[Date "2020.05.26"]
[Round "4"]
[White "mattcolins2025"]
[Black "eightbyeightchess"]
[Result "1-0"]
[WhiteElo "2302"]
[BlackElo "2436"]
[TimeControl "180+1"]
[EndTime "10:39:35 PDT"]
[Termination "mattcolins2025 won by resignation"]

1. d4 {[%clk 0:03:00.9]} 1... d5 {[%clk 0:02:58.7]} 2. c4 {[%clk 0:03:01]} 2...
c6 {[%clk 0:02:58.9]} 3. Nc3 {[%clk 0:03:01.2]} 3... Nf6 {[%clk 0:02:57.2]} 4.
Nf3 {[%clk 0:03:00.9]} 4... dxc4 {[%clk 0:02:57]} 5. a4 {[%clk 0:03:01]} 5...
Bf5 {[%clk 0:02:56.4]} 6. e3 {[%clk 0:03:01.1]} 6... e6 {[%clk 0:02:52.9]} 7.
Bxc4 {[%clk 0:03:01.2]} 7... Nbd7 {[%clk 0:02:53.4]} 8. O-O {[%clk 0:03:01.2]}
8... Bb4 {[%clk 0:02:53.3]} 9. Qb3 {[%clk 0:03:00.6]} 9... Bd6 {[%clk
0:02:52.2]} 10. Re1 {[%clk 0:02:50.1]} 10... Ne4 {[%clk 0:02:48.4]} 11. Nxe4
{[%clk 0:02:48.5]} 11... Bxe4 {[%clk 0:02:49.3]} 12. Nd2 {[%clk 0:02:34.6]}
12... Bg6 {[%clk 0:02:30.5]} 13. e4 {[%clk 0:02:32.4]} 13... O-O {[%clk
0:02:25.2]} 14. e5 {[%clk 0:02:31.1]} 14... Be7 {[%clk 0:02:15.8]} 15. Qxb7
{[%clk 0:02:24]} 15... Nb6 {[%clk 0:01:41.1]} 16. Bf1 {[%clk 0:02:16.6]} 16...
Bb4 {[%clk 0:01:30.9]} 17. a5 {[%clk 0:02:05]} 17... Nd5 {[%clk 0:01:09.6]} 18.
Rd1 {[%clk 0:01:45.5]} 18... Bxa5 {[%clk 0:00:58.4]} 19. Nc4 {[%clk 0:01:43.1]}
19... Bb4 {[%clk 0:00:52.6]} 20. Bd3 {[%clk 0:01:39.9]} 20... Bxd3 {[%clk
0:00:48]} 21. Rxd3 {[%clk 0:01:39.1]} 21... c5 {[%clk 0:00:35.3]} 22. Rxa7
{[%clk 0:01:24.7]} 22... Rxa7 {[%clk 0:00:34.2]} 23. Qxa7 {[%clk 0:01:24]} 23...
cxd4 {[%clk 0:00:34.1]} 24. Qxd4 {[%clk 0:01:22.9]} 24... Qc7 {[%clk 0:00:29.4]}
25. Bd2 {[%clk 0:01:19.9]} 25... Bc5 {[%clk 0:00:24.8]} 26. Qh4 {[%clk
0:01:15.2]} 26... Ra8 {[%clk 0:00:22.8]} 27. h3 {[%clk 0:01:03.5]} 27... Be7
{[%clk 0:00:22.3]} 28. Qg4 {[%clk 0:00:57.7]} 28... h5 {[%clk 0:00:20.1]} 29.
Qe4 {[%clk 0:00:55.9]} 29... Ra1+ {[%clk 0:00:18.7]} 30. Kh2 {[%clk 0:00:55.3]}
30... Nf6 {[%clk 0:00:18.9]} 31. Qf4 {[%clk 0:00:51.1]} 31... Nd5 {[%clk
0:00:17.2]} 32. Qe4 {[%clk 0:00:47.9]} 32... Bc5 {[%clk 0:00:15.5]} 33. Rf3
{[%clk 0:00:44.4]} 33... Qe7 {[%clk 0:00:12.5]} 34. h4 {[%clk 0:00:40.8]} 34...
Rd1 {[%clk 0:00:10.4]} 35. Bg5 {[%clk 0:00:39.9]} 35... Qd7 {[%clk 0:00:09.3]}
36. Rb3 {[%clk 0:00:35.1]} 36... Nb4 {[%clk 0:00:09.2]} 37. Nd6 {[%clk
0:00:25.6]} 37... Rd4 {[%clk 0:00:08.1]} 38. Qa8+ {[%clk 0:00:23.6]} 38... Kh7
{[%clk 0:00:08.2]} 39. Qf3 {[%clk 0:00:21.2]} 39... Bxd6 {[%clk 0:00:08]} 40.
exd6 {[%clk 0:00:20.4]} 40... f6 {[%clk 0:00:07.8]} 41. Qxh5+ {[%clk 0:00:19.5]}
41... Kg8 {[%clk 0:00:07.7]} 42. Be3 {[%clk 0:00:19.6]} 42... Re4 {[%clk
0:00:06.3]} 43. Rc3 {[%clk 0:00:18.8]} 43... Qxd6+ {[%clk 0:00:06.6]} 44. g3
{[%clk 0:00:18.9]} 44... Nc6 {[%clk 0:00:06]} 45. Qg6 {[%clk 0:00:17.6]} 45...
Re5 {[%clk 0:00:05.2]} 46. Qe8+ {[%clk 0:00:17.2]} 46... Kh7 {[%clk 0:00:05]}
47. Qxc6 {[%clk 0:00:17.1]} 47... Qd1 {[%clk 0:00:05.4]} 48. Qg2 {[%clk
0:00:16.4]} 48... Rd5 {[%clk 0:00:05.6]} 49. Bf4 {[%clk 0:00:16]} 49... Qe1
{[%clk 0:00:05.1]} 50. Be3 {[%clk 0:00:15.9]} 50... Rd1 {[%clk 0:00:05.2]} 51.
g4 {[%clk 0:00:15.4]} 51... Rb1 {[%clk 0:00:05.1]} 52. Kg3 {[%clk 0:00:14.3]}
52... Rxb2 {[%clk 0:00:04.1]} 53. Rc6 {[%clk 0:00:14.6]} 53... e5 {[%clk
0:00:04.1]} 54. h5 {[%clk 0:00:14.9]} 54... Qd1 {[%clk 0:00:03.9]} 55. Qe4+
{[%clk 0:00:14.9]} 55... Kg8 {[%clk 0:00:03.9]} 56. Rc8+ {[%clk 0:00:14.9]}
56... Kf7 {[%clk 0:00:04.4]} 57. Qc4+ {[%clk 0:00:15.2]} 57... Ke7 {[%clk
0:00:04.2]} 58. Rc7+ {[%clk 0:00:15.1]} 58... Kd8 {[%clk 0:00:04.3]} 59. Rc8+
{[%clk 0:00:15.6]} 59... Kd7 {[%clk 0:00:04.4]} 60. Qc7+ {[%clk 0:00:15.5]}
60... Ke6 {[%clk 0:00:04.4]} 61. Re8+ {[%clk 0:00:15.8]} 61... Kd5 {[%clk
0:00:04.7]} 62. Rd8+ {[%clk 0:00:15.3]} 62... Ke4 {[%clk 0:00:05]} 63. Qc6+
{[%clk 0:00:15.5]} 1-0

[Event "*** Titled Tuesday Blitz"]
[Site "Chess.com"]
[Date "2020.05.26"]
[Round "4"]
[White "Orest_Vovk"]
[Black "adiosabu"]
[Result "1-0"]
[WhiteElo "2434"]
[BlackElo "2591"]
[TimeControl "180+1"]
[EndTime "10:39:36 PDT"]
[Termination "Orest_Vovk won by resignation"]

1. g4 {[%clk 0:03:00.9]} 1... d5 {[%clk 0:02:58]} 2. h3 {[%clk 0:02:51.5]} 2...
Nc6 {[%clk 0:02:49.8]} 3. Bg2 {[%clk 0:02:51.8]} 3... e5 {[%clk 0:02:48.9]} 4.
c4 {[%clk 0:02:42.6]} 4... dxc4 {[%clk 0:02:40.5]} 5. Bxc6+ {[%clk 0:02:42.2]}
5... bxc6 {[%clk 0:02:39.9]} 6. Nc3 {[%clk 0:02:42.3]} 6... h5 {[%clk
0:02:36.9]} 7. Qa4 {[%clk 0:02:38.6]} 7... hxg4 {[%clk 0:02:32.6]} 8. hxg4
{[%clk 0:02:29]} 8... Rxh1 {[%clk 0:02:26.8]} 9. Qxc6+ {[%clk 0:02:28.9]} 9...
Bd7 {[%clk 0:02:24.4]} 10. Qxh1 {[%clk 0:02:29.8]} 10... Bxg4 {[%clk 0:02:20.7]}
11. Qc6+ {[%clk 0:02:29]} 11... Bd7 {[%clk 0:02:19.1]} 12. Qxc4 {[%clk
0:02:28.7]} 12... Nf6 {[%clk 0:02:18.8]} 13. Nf3 {[%clk 0:02:25.7]} 13... Bd6
{[%clk 0:02:18.3]} 14. Ng5 {[%clk 0:02:14.3]} 14... Qe7 {[%clk 0:02:16.4]} 15.
Qh4 {[%clk 0:02:14.1]} 15... Bc6 {[%clk 0:01:51.2]} 16. Qc4 {[%clk 0:01:52.7]}
16... Bd7 {[%clk 0:01:37.2]} 17. d3 {[%clk 0:01:40.2]} 17... Rb8 {[%clk
0:01:32.4]} 18. Qh4 {[%clk 0:01:25]} 18... Rb4 {[%clk 0:01:22.8]} 19. Qh8+
{[%clk 0:01:15.8]} 19... Qf8 {[%clk 0:01:22.1]} 20. Qh1 {[%clk 0:01:16.3]} 20...
c6 {[%clk 0:01:16.6]} 21. Nge4 {[%clk 0:01:07.6]} 21... Nxe4 {[%clk 0:01:14.5]}
22. Nxe4 {[%clk 0:01:07.2]} 22... Be7 {[%clk 0:01:04.4]} 23. a3 {[%clk
0:00:51.8]} 23... Rb7 {[%clk 0:00:57.2]} 24. b4 {[%clk 0:00:51.7]} 24... Kd8
{[%clk 0:00:47]} 25. Be3 {[%clk 0:00:44.6]} 25... a5 {[%clk 0:00:17.1]} 26. Nc5
{[%clk 0:00:41.6]} 26... Rb5 {[%clk 0:00:17.7]} 27. Nxd7 {[%clk 0:00:34.8]}
27... Kxd7 {[%clk 0:00:17.8]} 28. Rc1 {[%clk 0:00:35.1]} 28... Qa8 {[%clk
0:00:13.2]} 29. Qh3+ {[%clk 0:00:29]} 29... Kc7 {[%clk 0:00:13.4]} 30. Qf5
{[%clk 0:00:25.8]} 30... Bf6 {[%clk 0:00:12.8]} 31. Qe4 {[%clk 0:00:21.1]} 31...
axb4 {[%clk 0:00:12]} 32. Qc4 {[%clk 0:00:19]} 32... Qa6 {[%clk 0:00:09]} 33.
Qxf7+ {[%clk 0:00:18.3]} 33... Kb8 {[%clk 0:00:08.5]} 34. axb4 {[%clk
0:00:14.4]} 34... Qb7 {[%clk 0:00:05.8]} 35. Qg8+ {[%clk 0:00:11.4]} 35... Qc8
{[%clk 0:00:06.1]} 36. Qc4 {[%clk 0:00:11.3]} 36... Qb7 {[%clk 0:00:05.7]} 37.
Qxc6 {[%clk 0:00:10.2]} 37... Qxc6 {[%clk 0:00:05.7]} 38. Rxc6 {[%clk
0:00:11.1]} 38... Rxb4 {[%clk 0:00:06.2]} 39. Kf1 {[%clk 0:00:11.4]} 39... Rb1+
{[%clk 0:00:04.2]} 40. Kg2 {[%clk 0:00:11.1]} 40... Rb2 {[%clk 0:00:04.8]} 41.
Kf3 {[%clk 0:00:11.3]} 41... Kb7 {[%clk 0:00:05.1]} 42. Rc4 {[%clk 0:00:10.6]}
42... Ra2 {[%clk 0:00:04.7]} 43. Re4 {[%clk 0:00:09.6]} 43... Kc6 {[%clk
0:00:04.8]} 44. Bc1 {[%clk 0:00:08.1]} 44... Kd5 {[%clk 0:00:05]} 45. Be3 {[%clk
0:00:05.4]} 45... Rc2 {[%clk 0:00:05]} 46. Bb6 {[%clk 0:00:05.1]} 46... Rc6
{[%clk 0:00:04.9]} 47. Ba5 {[%clk 0:00:05.1]} 47... Rc2 {[%clk 0:00:04.7]} 48.
Bb4 {[%clk 0:00:04.9]} 48... Rc6 {[%clk 0:00:04.6]} 49. Bd2 {[%clk 0:00:04.7]}
49... Rc2 {[%clk 0:00:04.5]} 50. Be3 {[%clk 0:00:05]} 50... Rc6 {[%clk
0:00:04.2]} 51. Kg4 {[%clk 0:00:04.9]} 51... Rc2 {[%clk 0:00:04.7]} 52. Bg5
{[%clk 0:00:05.1]} 52... Rc5 {[%clk 0:00:03.7]} 53. Kf5 {[%clk 0:00:04.9]} 53...
Bxg5 {[%clk 0:00:03.4]} 54. Rxe5+ {[%clk 0:00:05.1]} 54... Kd4 {[%clk
0:00:02.5]} 55. Rxc5 {[%clk 0:00:06]} 55... Kxc5 {[%clk 0:00:02.8]} 56. Kxg5
{[%clk 0:00:06.2]} 1-0